fUSD/lending_fUSD_20260531
["ID","MTS","AMOUNT","RATE_DAILY","PERIOD"]
[423563314,1780229439000,-500.0,0.00013698,2]
[423563315,1780229439000,-500.0,0.00013698,2]
[423563322,1780229439000,-500.0,0.00013698,2]
[423563323,1780229439000,-500.0,0.00013698,2]
[423563324,1780229439000,-500.0,0.00013698,2]
[423563325,1780229439000,-500.0,0.00013698,2]
[423563326,1780229439000,-501.20372086,0.00013698,2]
[423563327,1780229439000,-500.0,0.00013698,2]
[423563329,1780229439000,-500.0,0.00013698,2]
[423563328,1780229439000,-216.73250781,0.00013698,2]
[423563331,1780229439000,-500.0,0.00013698,2]
[423563330,1780229439000,-500.0,0.00013698,2]
[423563333,1780229439000,-500.0,0.00013698,2]
[423563334,1780229439000,-500.0,0.00013698,2]
[423563336,1780229439000,-500.0,0.00013698,2]
[423563321,1780229439000,-500.0,0.00013698,2]
[423563366,1780229439000,-151.0,0.00013699,2]
[423563369,1780229439000,-151.0,0.00013699,2]
[423563398,1780229439000,-150.0,0.00013737,2]
[423563402,1780229439000,-500.0,0.0001383,8]
[423563412,1780229439000,-166.66,0.00013973,2]
[423563413,1780229439000,-500.0,0.00013973,2]
[423563401,1780229439000,-37284.69366132,0.00013824,2]
[423563404,1780229439000,-150.0,0.00013862,2]
[423563403,1780229439000,-166.66,0.00013836,2]
[423563406,1780229439000,-150.0,0.00013862,2]
[423563407,1780229439000,-150.0,0.00013862,2]
[423563409,1780229439000,-150.0,0.00013882,2]
[423563408,1780229439000,-325.02435635,0.00013881,2]
[423563411,1780229439000,-150.0,0.00013961,2]
[423563410,1780229439000,-1300.0,0.000139,5]
[423563414,1780229439000,-150.0,0.00013987,2]
[423563415,1780229439000,-150.0,0.00013987,2]
[423563418,1780229439000,-37284.69366132,0.0001404,2]
[423563417,1780229439000,-250.0,0.00014,2]
[423563422,1780229439000,-150.0,0.00014119,2]
[423563421,1780229439000,-150.0,0.00014112,2]
[423563424,1780229439000,-255.0,0.00014209,2]
[423563420,1780229439000,-166.66,0.0001411,2]
[423563416,1780229439000,-310.65,0.00013991,2]
[423563423,1780229439000,-150.0,0.00014198,2]
[423563419,1780229439000,-150.0,0.0001404,2]
[423563367,1780229439000,-151.0,0.00013699,2]
[423563389,1780229439000,-500.0,0.00013699,2]
[423563391,1780229439000,-500.0,0.00013699,2]
[423563405,1780229439000,-150.0,0.00013862,2]
[423563397,1780229439000,-150.0,0.00013724,2]
[423563368,1780229439000,-151.0,0.00013699,2]
[423563396,1780229439000,-360.5699744,0.00013699,2]
[423563370,1780229439000,-151.0,0.00013699,2]
[423563374,1780229439000,-166.66,0.00013699,2]
[423563371,1780229439000,-151.0,0.00013699,2]
[423563372,1780229439000,-151.0,0.00013699,2]
[423563373,1780229439000,-162.917968,0.00013699,2]
[423563377,1780229439000,-500.0,0.00013699,2]
[423563381,1780229439000,-500.0,0.00013699,2]
[423563383,1780229439000,-500.0,0.00013699,2]
[423563388,1780229439000,-500.0,0.00013699,2]
[423563387,1780229439000,-500.0,0.00013699,2]
[423563385,1780229439000,-500.0,0.00013699,2]
[423563378,1780229439000,-500.0,0.00013699,2]
[423563386,1780229439000,-500.0,0.00013699,2]
[423563399,1780229439000,-150.0,0.00013803,2]
[423563393,1780229439000,-500.0,0.00013699,2]
[423563392,1780229439000,-500.0,0.00013699,2]
[423563400,1780229439000,-383.09318388,0.00013814,2]
[423563394,1780229439000,-500.0,0.00013699,2]
[423563395,1780229439000,-500.0,0.00013699,2]
[423563382,1780229439000,-500.0,0.00013699,2]
[423563376,1780229439000,-500.0,0.00013699,2]
[423563380,1780229439000,-500.0,0.00013699,2]
[423563379,1780229439000,-500.0,0.00013699,2]
[423563390,1780229439000,-500.0,0.00013699,2]
[423563465,1780229440000,-37284.69366132,0.00014685,2]
[423563462,1780229440000,-150.0,0.00014612,2]
[423563470,1780229440000,-150.0,0.0001475,2]
[423563467,1780229440000,-2600.0,0.000147,5]
[423563466,1780229440000,-350.0,0.00014685,2]
[423563459,1780229440000,-1900.0,0.000146,5]
[423563464,1780229440000,-150.0,0.00014671,2]
[423563458,1780229440000,-150.0,0.00014592,2]
[423563456,1780229440000,-500.0,0.00014543,9]
[423563457,1780229440000,-2000.0,0.00014551,2]
[423563474,1780229440000,-350.0,0.00014788,2]
[423563463,1780229440000,-150.0,0.00014612,2]
[423563471,1780229440000,-396.0,0.00014766,2]
[423563480,1780229440000,-523.93,0.00014799,2]
[423563469,1780229440000,-396.0,0.00014738,2]
[423563472,1780229440000,-396.0,0.00014778,2]
[423563475,1780229440000,-500.0,0.00014795,2]
[423563477,1780229440000,-649.25,0.00014799,2]
[423563478,1780229440000,-500.0,0.00014799,2]
[423563479,1780229440000,-500.0,0.00014799,2]
[423563476,1780229440000,-519.13,0.00014799,2]
[423563482,1780229440000,-500.0,0.00014799,2]
[423563486,1780229440000,-500.0,0.00014799,2]
[423563484,1780229440000,-500.0,0.00014799,2]
[423563483,1780229440000,-500.0,0.00014799,2]
[423563481,1780229440000,-500.0,0.00014799,2]
[423563451,1780229440000,-673.24,0.00014531,2]
[423563468,1780229440000,-150.0,0.00014737,2]
[423563455,1780229440000,-1546.53,0.00014531,2]
[423563431,1780229440000,-37284.69366132,0.00014255,2]
[423563485,1780229440000,-1006.41,0.00014799,2]
[423563427,1780229440000,-150.0,0.00014237,2]
[423563426,1780229440000,-150.0,0.00014237,2]
[423563425,1780229440000,-150.0,0.00014237,2]
[423563436,1780229440000,-150.0,0.00014362,2]
[423563429,1780229440000,-166.66,0.00014247,2]
[423563428,1780229440000,-150.0,0.00014237,2]
[423563432,1780229440000,-1396.0,0.00014259,2]
[423563430,1780229440000,-500.0,0.00014247,2]
[423563434,1780229440000,-442.3205589,0.00014316,2]
[423563433,1780229440000,-150.0,0.00014276,2]
[423563435,1780229440000,-150.0,0.00014355,2]
[423563438,1780229440000,-350.0,0.0001438,2]
[423563448,1780229440000,-150.0,0.00014513,2]
[423563452,1780229440000,-500.0,0.00014531,2]
[423563439,1780229440000,-166.66,0.00014384,2]
[423563442,1780229440000,-500.0,0.00014452,2]
[423563445,1780229440000,-150.0,0.00014487,2]
[423563447,1780229440000,-500.0,0.00014499,2]
[423563444,1780229440000,-37284.69366132,0.0001447,2]
[423563440,1780229440000,-464.100363,0.00014406,2]
[423563441,1780229440000,-150.0,0.00014434,2]
[423563443,1780229440000,-350.0,0.00014458,2]
[423563446,1780229440000,-150.0,0.00014487,2]
[423563450,1780229440000,-500.0,0.00014521,2]
[423563449,1780229440000,-350.0,0.0001452,2]
[423563460,1780229440000,-150.0,0.00014612,2]
[423563453,1780229440000,-500.0,0.00014531,2]
[423563461,1780229440000,-150.0,0.00014612,2]
[423563437,1780229440000,-470.6,0.00014365,2]
[423563490,1780229440000,-152.0,0.00014806,7]
[423563454,1780229440000,-500.0,0.00014531,2]
[423563495,1780229440000,-425.0,0.00014828,2]
[423563525,1780229440000,-192.04707551,0.000149,2]
[423563520,1780229440000,-396.0,0.00014885,2]
[423563523,1780229440000,-396.0,0.00014898,2]
[423563517,1780229440000,-200.0,0.00014879,2]
[423563538,1780229440000,-425.0,0.00014906,2]
[423563530,1780229440000,-10000.0,0.000149,2]
[423563531,1780229440000,-2956.0,0.000149,5]
[423563528,1780229440000,-230.84602445,0.000149,2]
[423563529,1780229440000,-230.84602445,0.000149,2]
[423563539,1780229440000,-150.0,0.00014907,2]
[423563527,1780229440000,-230.84602447,0.000149,2]
[423563533,1780229440000,-600.0,0.000149,5]
[423563532,1780229440000,-10679.24065909,0.000149,2]
[423563535,1780229440000,-37284.69366132,0.000149,2]
[423563536,1780229440000,-152.0,0.00014901,7]
[423563534,1780229440000,-616.46654918,0.000149,2]
[423563537,1780229440000,-396.0,0.00014902,2]
[423563540,1780229440000,-396.0,0.00014915,2]
[423563548,1780229440000,-396.0,0.00014941,2]
[423563541,1780229440000,-376.0,0.00014917,2]
[423563549,1780229440000,-396.0,0.00014941,2]
[423563545,1780229440000,-396.0,0.00014931,2]
[423563544,1780229440000,-396.0,0.00014927,2]
[423563550,1780229440000,-396.0,0.00014941,2]
[423563546,1780229440000,-396.0,0.00014937,2]
[423563542,1780229440000,-152.0,0.00014922,7]
[423563547,1780229440000,-425.0,0.00014938,2]
[423563543,1780229440000,-152.0,0.00014922,7]
[423563496,1780229440000,-150.0,0.00014829,2]
[423563515,1780229440000,-10259.85300746,0.00014872,2]
[423563524,1780229440000,-500.0,0.00014899,10]
[423563473,1780229440000,-396.0,0.0001478,2]
[423563526,1780229440000,-2000.0,0.000149,2]
[423563488,1780229440000,-3200.0,0.000148,5]
[423563492,1780229440000,-425.0,0.00014816,2]
[423563487,1780229440000,-396.0,0.000148,2]
[423563491,1780229440000,-396.0,0.00014816,2]
[423563489,1780229440000,-152.0,0.00014806,7]
[423563499,1780229440000,-396.0,0.00014842,2]
[423563498,1780229440000,-396.0,0.00014841,2]
[423563494,1780229440000,-350.0,0.00014821,2]
[423563497,1780229440000,-376.0,0.00014829,2]
[423563501,1780229440000,-1169.23479,0.0001485,2]
[423563511,1780229440000,-150.0,0.00014861,2]
[423563512,1780229440000,-200.0,0.00014869,2]
[423563500,1780229440000,-1148.07,0.00014849,2]
[423563513,1780229440000,-425.0,0.0001487,2]
[423563493,1780229440000,-200.0,0.0001482,2]
[423563522,1780229440000,-396.0,0.00014895,2]
[423563509,1780229440000,-200.0,0.0001486,2]
[423563518,1780229440000,-163.0,0.0001488,2]
[423563519,1780229440000,-163.0,0.0001488,2]
[423563516,1780229440000,-413.61503396,0.00014872,2]
[423563521,1780229440000,-396.0,0.00014888,2]
[423563510,1780229440000,-1169.2348,0.0001486,2]
[423563514,1780229440000,-4917.82941975,0.00014872,2]
[423563504,1780229440000,-396.0,0.00014852,2]
[423563505,1780229440000,-396.0,0.00014852,2]
[423563503,1780229440000,-396.0,0.00014851,2]
[423563502,1780229440000,-1169.2348,0.0001485,2]
[423563506,1780229440000,-190.53307865,0.00014853,2]
[423563508,1780229440000,-1000.0,0.0001486,2]
[423563507,1780229440000,-478.36,0.00014857,2]
[423563572,1780229441000,-383.09318388,0.0001499,2]
[423563588,1780229441000,-519.13,0.00014999,2]
[423563570,1780229441000,-376.0,0.00014987,2]
[423563573,1780229441000,-376.0,0.00014995,2]
[423563578,1780229441000,-500.0,0.00014999,11]
[423563579,1780229441000,-500.0,0.00014999,12]
[423563580,1780229441000,-500.0,0.00014999,13]
[423563582,1780229441000,-500.0,0.00014999,15]
[423563581,1780229441000,-500.0,0.00014999,14]
[423563590,1780229441000,-519.13,0.00014999,2]
[423563585,1780229441000,-519.13,0.00014999,2]
[423563583,1780229441000,-544.53548151,0.00014999,16]
[423563584,1780229441000,-519.13,0.00014999,2]
[423563587,1780229441000,-519.13,0.00014999,2]
[423563591,1780229441000,-519.13,0.00014999,2]
[423563592,1780229441000,-519.13,0.00014999,2]
[423563601,1780229441000,-519.13,0.00014999,2]
[423563594,1780229441000,-519.13,0.00014999,2]
[423563574,1780229441000,-151.0,0.00014997,2]
[423563589,1780229441000,-519.13,0.00014999,2]
[423563577,1780229441000,-216.3481031,0.00014999,2]
[423563558,1780229441000,-396.0,0.0001496,2]
[423563571,1780229441000,-396.0,0.00014989,2]
[423563552,1780229441000,-425.0,0.0001495,2]
[423563551,1780229441000,-396.0,0.00014942,2]
[423563554,1780229441000,-396.0,0.00014954,2]
[423563564,1780229441000,-150.0,0.00014986,2]
[423563553,1780229441000,-350.0,0.0001495,2]
[423563555,1780229441000,-500.0,0.00014956,2]
[423563595,1780229441000,-519.13,0.00014999,2]
[423563560,1780229441000,-376.0,0.00014965,2]
[423563559,1780229441000,-396.0,0.0001496,2]
[423563575,1780229441000,-500.0,0.00014998,2]
[423563557,1780229441000,-273.05167002,0.0001496,2]
[423563562,1780229441000,-156.46,0.0001498,2]
[423563563,1780229441000,-381.0,0.00014982,2]
[423563561,1780229441000,-376.0,0.00014975,2]
[423563565,1780229441000,-150.0,0.00014986,2]
[423563568,1780229441000,-269.1557045,0.00014986,2]
[423563567,1780229441000,-157.63545371,0.00014986,2]
[423563566,1780229441000,-150.0,0.00014986,2]
[423563576,1780229441000,-287.02,0.00014999,2]
[423563569,1780229441000,-153.7740167,0.00014986,2]
[423563556,1780229441000,-2000.0,0.00014956,2]
[423563597,1780229441000,-519.13,0.00014999,2]
[423563586,1780229441000,-519.13,0.00014999,2]
[423563596,1780229441000,-519.13,0.00014999,2]
[423563623,1780229441000,-500.0,0.00014999,2]
[423563622,1780229441000,-500.0,0.00014999,2]
[423563621,1780229441000,-649.48,0.00014999,2]
[423563620,1780229441000,-649.25,0.00014999,2]
[423563628,1780229441000,-500.0,0.00014999,2]
[423563639,1780229441000,-500.0,0.00014999,2]
[423563638,1780229441000,-500.0,0.00014999,2]
[423563627,1780229441000,-500.0,0.00014999,2]
[423563629,1780229441000,-174.18899724,0.00014999,2]
[423563624,1780229441000,-500.0,0.00014999,2]
[423563631,1780229441000,-500.0,0.00014999,2]
[423563636,1780229441000,-500.0,0.00014999,2]
[423563634,1780229441000,-500.0,0.00014999,2]
[423563637,1780229441000,-500.0,0.00014999,2]
[423563633,1780229441000,-500.0,0.00014999,2]
[423563635,1780229441000,-500.0,0.00014999,2]
[423563640,1780229441000,-500.0,0.00014999,2]
[423563641,1780229441000,-263.08171548,0.00014999,2]
[423563642,1780229441000,-523.93,0.00014999,2]
[423563600,1780229441000,-519.13,0.00014999,2]
[423563632,1780229441000,-500.0,0.00014999,2]
[423563625,1780229441000,-500.0,0.00014999,2]
[423563630,1780229441000,-500.0,0.00014999,2]
[423563618,1780229441000,-649.25,0.00014999,2]
[423563593,1780229441000,-519.13,0.00014999,2]
[423563619,1780229441000,-649.25,0.00014999,2]
[423563598,1780229441000,-519.13,0.00014999,2]
[423563603,1780229441000,-649.25,0.00014999,2]
[423563604,1780229441000,-649.25,0.00014999,2]
[423563613,1780229441000,-649.25,0.00014999,2]
[423563614,1780229441000,-649.25,0.00014999,2]
[423563608,1780229441000,-649.25,0.00014999,2]
[423563607,1780229441000,-649.25,0.00014999,2]
[423563609,1780229441000,-649.25,0.00014999,2]
[423563599,1780229441000,-519.13,0.00014999,2]
[423563605,1780229441000,-649.25,0.00014999,2]
[423563606,1780229441000,-649.25,0.00014999,2]
[423563611,1780229441000,-649.25,0.00014999,2]
[423563602,1780229441000,-519.31,0.00014999,2]
[423563610,1780229441000,-649.25,0.00014999,2]
[423563612,1780229441000,-649.25,0.00014999,2]
[423563616,1780229441000,-649.25,0.00014999,2]
[423563615,1780229441000,-649.25,0.00014999,2]
[423563617,1780229441000,-649.25,0.00014999,2]
[423563626,1780229441000,-500.0,0.00014999,2]
[423563681,1780229442000,-500.0,0.00014999,2]
[423563674,1780229442000,-673.24,0.00014999,2]
[423563676,1780229442000,-673.24,0.00014999,2]
[423563679,1780229442000,-673.47161067,0.00014999,2]
[423563672,1780229442000,-673.24,0.00014999,2]
[423563675,1780229442000,-673.24,0.00014999,2]
[423563678,1780229442000,-673.24,0.00014999,2]
[423563673,1780229442000,-673.24,0.00014999,2]
[423563671,1780229442000,-673.24,0.00014999,2]
[423563677,1780229442000,-673.24,0.00014999,2]
[423563680,1780229442000,-500.0,0.00014999,2]
[423563694,1780229442000,-500.0,0.00014999,2]
[423563682,1780229442000,-500.0,0.00014999,2]
[423563684,1780229442000,-245.62717302,0.00014999,2]
[423563686,1780229442000,-500.0,0.00014999,2]
[423563665,1780229442000,-673.24,0.00014999,2]
[423563688,1780229442000,-500.0,0.00014999,2]
[423563690,1780229442000,-500.0,0.00014999,2]
[423563693,1780229442000,-500.0,0.00014999,2]
[423563687,1780229442000,-494.05405209,0.00014999,2]
[423563685,1780229442000,-500.0,0.00014999,2]
[423563692,1780229442000,-500.0,0.00014999,2]
[423563689,1780229442000,-500.0,0.00014999,2]
[423563683,1780229442000,-500.0,0.00014999,2]
[423563668,1780229442000,-673.24,0.00014999,2]
[423563645,1780229442000,-523.93,0.00014999,2]
[423563670,1780229442000,-673.24,0.00014999,2]
[423563691,1780229442000,-500.0,0.00014999,2]
[423563644,1780229442000,-523.93,0.00014999,2]
[423563643,1780229442000,-523.93,0.00014999,2]
[423563646,1780229442000,-523.93,0.00014999,2]
[423563647,1780229442000,-523.93,0.00014999,2]
[423563650,1780229442000,-523.93,0.00014999,2]
[423563651,1780229442000,-523.93,0.00014999,2]
[423563649,1780229442000,-523.93,0.00014999,2]
[423563652,1780229442000,-523.93,0.00014999,2]
[423563653,1780229442000,-523.93,0.00014999,2]
[423563655,1780229442000,-523.93,0.00014999,2]
[423563656,1780229442000,-523.93,0.00014999,2]
[423563654,1780229442000,-523.93,0.00014999,2]
[423563657,1780229442000,-523.93,0.00014999,2]
[423563661,1780229442000,-673.24,0.00014999,2]
[423563659,1780229442000,-523.93,0.00014999,2]
[423563658,1780229442000,-523.93,0.00014999,2]
[423563660,1780229442000,-524.05368182,0.00014999,2]
[423563662,1780229442000,-673.24,0.00014999,2]
[423563663,1780229442000,-673.24,0.00014999,2]
[423563666,1780229442000,-673.24,0.00014999,2]
[423563669,1780229442000,-673.24,0.00014999,2]
[423563667,1780229442000,-673.24,0.00014999,2]
[423563664,1780229442000,-673.24,0.00014999,2]
[423563695,1780229442000,-500.0,0.00014999,2]
[423563648,1780229442000,-523.93,0.00014999,2]
[423563697,1780229442000,-500.0,0.00014999,2]
[423563742,1780229442000,-500.0,0.00014999,2]
[423563743,1780229442000,-500.0,0.00014999,2]
[423563729,1780229442000,-500.0,0.00014999,2]
[423563741,1780229442000,-500.0,0.00014999,2]
[423563732,1780229442000,-500.0,0.00014999,2]
[423563753,1780229442000,-500.0,0.00014999,2]
[423563750,1780229442000,-500.0,0.00014999,2]
[423563749,1780229442000,-500.0,0.00014999,2]
[423563746,1780229442000,-500.0,0.00014999,2]
[423563744,1780229442000,-500.0,0.00014999,2]
[423563745,1780229442000,-500.0,0.00014999,2]
[423563752,1780229442000,-500.0,0.00014999,2]
[423563751,1780229442000,-500.0,0.00014999,2]
[423563747,1780229442000,-500.0,0.00014999,2]
[423563748,1780229442000,-500.0,0.00014999,2]
[423563761,1780229442000,-500.0,0.00014999,2]
[423563755,1780229442000,-500.0,0.00014999,2]
[423563760,1780229442000,-500.0,0.00014999,2]
[423563759,1780229442000,-500.0,0.00014999,2]
[423563756,1780229442000,-500.0,0.00014999,2]
[423563757,1780229442000,-500.0,0.00014999,2]
[423563758,1780229442000,-500.0,0.00014999,2]
[423563701,1780229442000,-500.0,0.00014999,2]
[423563740,1780229442000,-500.0,0.00014999,2]
[423563737,1780229442000,-500.0,0.00014999,2]
[423563754,1780229442000,-500.0,0.00014999,2]
[423563726,1780229442000,-500.0,0.00014999,2]
[423563738,1780229442000,-500.0,0.00014999,2]
[423563696,1780229442000,-500.0,0.00014999,2]
[423563698,1780229442000,-500.0,0.00014999,2]
[423563703,1780229442000,-500.0,0.00014999,2]
[423563705,1780229442000,-544.57270483,0.00014999,2]
[423563702,1780229442000,-373.249,0.00014999,2]
[423563709,1780229442000,-500.0,0.00014999,2]
[423563708,1780229442000,-500.0,0.00014999,2]
[423563707,1780229442000,-500.0,0.00014999,2]
[423563704,1780229442000,-500.0,0.00014999,2]
[423563720,1780229442000,-500.0,0.00014999,2]
[423563722,1780229442000,-864.52702,0.00014999,2]
[423563700,1780229442000,-500.0,0.00014999,2]
[423563713,1780229442000,-500.0,0.00014999,2]
[423563711,1780229442000,-500.0,0.00014999,2]
[423563739,1780229442000,-500.0,0.00014999,2]
[423563715,1780229442000,-500.0,0.00014999,2]
[423563723,1780229442000,-500.0,0.00014999,2]
[423563714,1780229442000,-500.0,0.00014999,2]
[423563719,1780229442000,-500.0,0.00014999,2]
[423563721,1780229442000,-565.35437327,0.00014999,2]
[423563710,1780229442000,-500.0,0.00014999,2]
[423563712,1780229442000,-500.0,0.00014999,2]
[423563717,1780229442000,-500.0,0.00014999,2]
[423563735,1780229442000,-500.0,0.00014999,2]
[423563788,1780229443000,-1006.41,0.00014999,2]
[423563787,1780229443000,-1006.41,0.00014999,2]
[423563794,1780229443000,-1006.41,0.00014999,2]
[423563789,1780229443000,-1006.41,0.00014999,2]
[423563791,1780229443000,-1006.41,0.00014999,2]
[423563792,1780229443000,-1006.41,0.00014999,2]
[423563793,1780229443000,-1006.41,0.00014999,2]
[423563790,1780229443000,-1006.41,0.00014999,2]
[423563795,1780229443000,-1006.41,0.00014999,2]
[423563803,1780229443000,-1006.41,0.00014999,2]
[423563807,1780229443000,-500.0,0.00014999,2]
[423563798,1780229443000,-1006.41,0.00014999,2]
[423563799,1780229443000,-1006.41,0.00014999,2]
[423563796,1780229443000,-1006.41,0.00014999,2]
[423563801,1780229443000,-1006.41,0.00014999,2]
[423563804,1780229443000,-1006.47,0.00014999,2]
[423563800,1780229443000,-1006.41,0.00014999,2]
[423563805,1780229443000,-500.0,0.00014999,2]
[423563786,1780229443000,-1006.41,0.00014999,2]
[423563806,1780229443000,-500.0,0.00014999,2]
[423563797,1780229443000,-1006.41,0.00014999,2]
[423563784,1780229443000,-500.0,0.00014999,2]
[423563773,1780229443000,-500.0,0.00014999,2]
[423563777,1780229443000,-500.0,0.00014999,2]
[423563802,1780229443000,-1006.41,0.00014999,2]
[423563762,1780229443000,-500.0,0.00014999,2]
[423563764,1780229443000,-500.0,0.00014999,2]
[423563763,1780229443000,-500.0,0.00014999,2]
[423563766,1780229443000,-500.0,0.00014999,2]
[423563765,1780229443000,-500.0,0.00014999,2]
[423563769,1780229443000,-500.0,0.00014999,2]
[423563770,1780229443000,-500.0,0.00014999,2]
[423563768,1780229443000,-500.0,0.00014999,2]
[423563767,1780229443000,-500.0,0.00014999,2]
[423563771,1780229443000,-500.0,0.00014999,2]
[423563772,1780229443000,-500.0,0.00014999,2]
[423563774,1780229443000,-500.0,0.00014999,2]
[423563783,1780229443000,-500.0,0.00014999,2]
[423563779,1780229443000,-500.0,0.00014999,2]
[423563776,1780229443000,-500.0,0.00014999,2]
[423563775,1780229443000,-500.0,0.00014999,2]
[423563780,1780229443000,-500.0,0.00014999,2]
[423563785,1780229443000,-370.21269441,0.00014999,2]
[423563782,1780229443000,-500.0,0.00014999,2]
[423563778,1780229443000,-500.0,0.00014999,2]
[423563781,1780229443000,-500.0,0.00014999,2]
[423563808,1780229443000,-500.0,0.00014999,2]
[423563843,1780229443000,-500.0,0.00014999,2]
[423563811,1780229443000,-500.0,0.00014999,2]
[423563835,1780229443000,-2164.528491,0.00014999,2]
[423563839,1780229443000,-2164.528491,0.00014999,2]
[423563849,1780229443000,-500.0,0.00014999,2]
[423563838,1780229443000,-409.61465953,0.00014999,2]
[423563842,1780229443000,-500.0,0.00014999,2]
[423563841,1780229443000,-151.0,0.00014999,2]
[423563813,1780229443000,-1546.53,0.00014999,2]
[423563840,1780229443000,-151.0,0.00014999,2]
[423563847,1780229443000,-500.0,0.00014999,2]
[423563833,1780229443000,-156.0,0.00014999,2]
[423563848,1780229443000,-500.0,0.00014999,2]
[423563844,1780229443000,-500.0,0.00014999,2]
[423563846,1780229443000,-500.0,0.00014999,2]
[423563856,1780229443000,-300.0,0.00014999,2]
[423563855,1780229443000,-300.0,0.00014999,2]
[423563850,1780229443000,-151.0,0.00014999,2]
[423563851,1780229443000,-500.0,0.00014999,2]
[423563854,1780229443000,-300.0,0.00014999,2]
[423563853,1780229443000,-151.0,0.00014999,2]
[423563857,1780229443000,-666.0,0.00014999,2]
[423563845,1780229443000,-500.0,0.00014999,2]
[423563834,1780229443000,-156.0,0.00014999,2]
[423563831,1780229443000,-1546.53,0.00014999,2]
[423563832,1780229443000,-1546.53476277,0.00014999,2]
[423563812,1780229443000,-365.01560358,0.00014999,2]
[423563816,1780229443000,-1546.53,0.00014999,2]
[423563810,1780229443000,-500.0,0.00014999,2]
[423563814,1780229443000,-1546.53,0.00014999,2]
[423563815,1780229443000,-1546.53,0.00014999,2]
[423563809,1780229443000,-500.0,0.00014999,2]
[423563818,1780229443000,-1546.53,0.00014999,2]
[423563830,1780229443000,-1546.53,0.00014999,2]
[423563820,1780229443000,-1546.53,0.00014999,2]
[423563823,1780229443000,-1546.53,0.00014999,2]
[423563819,1780229443000,-1546.53,0.00014999,2]
[423563824,1780229443000,-1546.53,0.00014999,2]
[423563827,1780229443000,-1546.53,0.00014999,2]
[423563821,1780229443000,-1546.53,0.00014999,2]
[423563829,1780229443000,-1546.53,0.00014999,2]
[423563825,1780229443000,-1546.53,0.00014999,2]
[423563852,1780229443000,-508.41629767,0.00014999,2]
[423563837,1780229443000,-2164.528491,0.00014999,2]
[423563836,1780229443000,-2164.528491,0.00014999,2]
[423563826,1780229443000,-1546.53,0.00014999,2]
[423563822,1780229443000,-1546.53,0.00014999,2]
[423563828,1780229443000,-1546.53,0.00014999,2]
[423563861,1780229444000,-770.39863276,0.00015,2]
[423563859,1780229444000,-2932.0,0.00015,5]
[423563858,1780229444000,-300.0,0.00014999,2]
[423563860,1780229444000,-1275235.78130293,0.00015,2]
[423563866,1780229445000,-27.92388281,0.00015,2]
[423563864,1780229445000,-2000.0,0.00013357,2]
[423563865,1780229445000,-215.61611719,0.00013516,2]
[423563868,1780229761000,152.0,0.00030006,120]